bitfinex-derivatives/quotes_SOLF0:USTF0_20251107
["timestamp","ask_amount","ask_price","bid_price","bid_amount"]
[1762516905201,0.04836825,153.87,153.84,0.04585877]
[1762516905599,3.14836825,153.87,153.84,0.04585877]
[1762516905803,3.1,153.85,153.84,0.04585877]
[1762516906012,8.39980035,153.85,153.78,66.2]
[1762516906302,5.29980035,153.84,153.78,66.2]
[1762516906507,3.1,153.85,153.78,66.2]
[1762516906704,5.30055601,153.84,153.78,66.2]
[1762516907009,8.4503929,153.83,153.79,0.04702443]
[1762516907306,3.1431747,153.83,153.79,0.04977785]
[1762516907702,3.1,153.81,153.79,0.04977785]
[1762516907894,5.30227581,153.8,153.79,0.04977785]
[1762516908095,8.40227581,153.8,153.79,0.04977785]
[1762516908294,3.1,153.8,153.79,0.04977785]
[1762516908502,3.1,153.82,153.79,0.04977785]
[1762516908704,3.1,153.8,153.79,0.04977785]
[1762516908906,3.1,153.79,153.72,66.2]
[1762516909904,0.04206382,153.77,153.74,0.04386286]
[1762516910603,0.04206382,153.77,153.74,3.09386286]
[1762516911807,3.14206382,153.77,153.74,0.04386286]
[1762516912204,0.04206382,153.77,153.74,0.04386286]
[1762516912506,3.14206382,153.77,153.74,0.04386286]
[1762516912808,0.04206382,153.77,153.74,0.04386286]
[1762516914206,0.04206382,153.77,153.75,3.05]
[1762516914599,0.04206382,153.77,153.75,8.9064]
[1762516914798,0.04206382,153.77,153.76,3.05]
[1762516915500,0.04206382,153.77,153.75,5.8564]
[1762516915705,3.14206382,153.77,153.74,0.04386286]
[1762516916101,0.04206382,153.77,153.74,0.04386286]
[1762516916407,3.14206382,153.77,153.74,0.04386286]
[1762516916607,3.1,153.75,153.65,3.05]
[1762516916809,8.41707092,153.74,153.65,3.05]
[1762516917007,5.31707092,153.73,153.66,3.05]
[1762516917207,3.1,153.74,153.66,3.05]
[1762516917516,3.1,153.77,153.66,3.05]
[1762516917719,6.02777009,153.79,153.67,8.9097]
[1762516917720,8.9568,153.75,153.67,8.9097]
[1762516918014,0.04371229,153.73,153.69,3.09344105]
[1762516920017,0.04371229,153.73,153.69,8.95224105]
[1762516920215,0.04371229,153.73,153.7,3.05]
[1762516921011,198.76584747,153.8,153.7,3.05]
[1762516921218,5.30905117,153.79,153.7,3.05]
[1762516921520,207.72074747,153.8,153.72,8.9076]
[1762516921722,5.30814029,153.79,153.72,8.9076]
[1762516921912,5.30814029,153.78,153.72,8.9076]
[1762516922218,3.1,153.76,153.73,0.04336147]
[1762516922719,3.1,153.74,153.68,3.05]
[1762516922913,3.1,153.72,153.65,66.22]
[1762516923108,5.38633577,153.71,153.65,66.22]
[1762516923313,3.1,153.72,153.65,66.22]
[1762516923615,3.1,153.76,153.66,3.05]
[1762516923920,3.14511021,153.73,153.69,0.04270322]
[1762516924117,8.48237015,153.72,153.69,0.04907402]
[1762516924320,3.14511021,153.73,153.69,0.04907402]
[1762516924919,0.04511021,153.73,153.69,3.09907402]
[1762516925922,0.04511021,153.73,153.69,8.95787402]
[1762516926118,0.04511021,153.73,153.7,3.05]
[1762516926719,3.14511021,153.73,153.69,0.04907402]
[1762516927524,0.04511021,153.73,153.69,3.09907402]
[1762516928125,3.14511021,153.73,153.69,0.04907402]
[1762516928718,3.1,153.71,153.69,0.04907402]
[1762516928924,3.1,153.7,153.69,0.04907402]
[1762516929318,8.4750685,153.7,153.65,66.22]
[1762516929620,8.4750685,153.69,153.62,3.05]
[1762516929817,4.58942546,153.72,153.62,3.05]
[1762516930025,7.99475546,153.75,153.59,74.78618142]
[1762516930026,3.1,153.75,153.65,3.05]
[1762516930323,13.06169978,153.74,153.65,3.05]
[1762516930524,3.1,153.71,153.68,0.04283777]
[1762516931218,8.9583,153.71,153.68,0.04283777]
[1762516931424,3.1,153.71,153.68,0.04283777]
[1762516932321,8.9583,153.71,153.68,0.04283777]
[1762516932927,8.9587,153.7,153.68,0.04283777]
[1762516933122,3.1,153.69,153.68,0.04283777]
[1762516933723,8.47003422,153.69,153.68,0.04283777]
[1762516934229,3.25,153.67,153.63,66.26]
[1762516934730,3.25,153.67,153.61,3.05]
[1762516935130,9.1106,153.65,153.58,69.29]
[1762516935333,3.29905535,153.63,153.6,0.04137495]
[1762516935632,3.29946404,153.63,153.6,0.04942659]
[1762516936426,3.25,153.61,153.55,3.05]
[1762516936626,3.25,153.61,153.52,66.26]
[1762516936627,8.61464284,153.6,153.52,66.26]
[1762516936936,5.36464284,153.59,153.52,69.31]
[1762516937122,3.25,153.6,153.52,69.31]
[1762516937322,5.8633,153.58,153.52,69.31]
[1762516937530,5.8633,153.58,153.53,0.03189197]
[1762516937531,3.29682183,153.57,153.53,0.03189197]
[1762516937730,0.04682183,153.57,153.53,3.08189197]
[1762516938635,3.29682183,153.57,153.53,0.03189197]
[1762516938824,3.25,153.56,153.53,0.03189197]
[1762516939029,0.04682183,153.57,153.53,3.08189197]
[1762516939427,0.04682183,153.57,153.54,3.05]
[1762516940539,0.04682183,153.57,153.55,3.05]
[1762516942335,3.29682183,153.57,153.53,0.03189197]
[1762516942634,8.59899314,153.56,153.53,0.03189197]
[1762516942834,0.04682183,153.57,153.53,0.03189197]
[1762516942835,14.46377387,153.55,153.53,0.03189197]
[1762516943137,3.25,153.55,153.53,0.03189197]
[1762516943333,0.04682183,153.57,153.53,3.08189197]
[1762516944035,0.04682183,153.57,153.55,3.05]
[1762516944230,5.34468766,153.62,153.55,3.05]
[1762516944433,3.25,153.65,153.55,3.05]
[1762516944730,5.34366766,153.64,153.57,5.8634]
[1762516944934,5.34366766,153.63,153.57,5.8634]
[1762516945136,11.20546766,153.62,153.55,8.9141]
[1762516945430,0.04201767,153.61,153.57,3.09664174]
[1762516946134,5.34386465,153.6,153.57,0.04664174]
[1762516946340,3.29201767,153.61,153.57,0.04664174]
[1762516947234,0.04201767,153.61,153.57,3.09664174]
[1762516947834,3.29201767,153.61,153.57,3.09664174]
[1762516948030,3.29201767,153.61,153.57,0.04664174]
[1762516948031,3.25,153.59,153.57,0.04664174]
[1762516948240,3.25,153.56,153.48,3.05]
[1762516948428,5.34613171,153.55,153.48,3.05]
[1762516948632,11.21093171,153.54,153.48,8.9168]
[1762516948942,5.34613171,153.53,153.49,3.05]
[1762516949237,5.35190206,153.52,153.49,3.08207206]
[1762516949538,0.04205104,153.53,153.5,3.05]
[1762516950841,0.04205104,153.53,153.5,8.916]
[1762516951038,0.04205104,153.53,153.51,3.05]
[1762516951639,5.35114832,153.52,153.49,3.08207206]
[1762516951942,0.04205104,153.53,153.49,3.08207206]
[1762516952242,5.33831263,153.52,153.49,3.08207206]
[1762516952442,0.04205104,153.53,153.51,3.05]
[1762516953135,0.04205104,153.53,153.52,3.05]
[1762516953335,0.04205104,153.53,153.5,66.3]
[1762516953336,5.3795312,153.53,153.5,69.35]
[1762516953535,5.33693676,153.52,153.5,69.35]
[1762516953731,0.04205104,153.53,153.5,69.35]
[1762516954136,5.3367899,153.52,153.5,69.35]
[1762516954337,5.33648932,153.51,153.5,66.3]
[1762516954540,5.33648932,153.51,153.49,0.03207206]
[1762516954740,5.33678395,153.5,153.49,0.03207206]
[1762516954943,5.33678395,153.5,153.49,3.08207206]
[1762516955246,0.04205104,153.53,153.49,3.08207206]
[1762516955545,5.33616706,153.52,153.49,3.08207206]
[1762516955838,5.33616706,153.51,153.49,0.03207206]
[1762516956044,5.33616706,153.5,153.49,0.03207206]
[1762516956746,5.33616706,153.5,153.49,3.08207206]
[1762516957041,0.04205104,153.53,153.49,3.08207206]
[1762516957438,0.04205104,153.53,153.49,8.94847206]
[1762516957948,0.04205104,153.53,153.5,3.05]
[1762516959537,0.04205104,153.53,153.52,3.0]
[1762516960139,5.38050227,153.53,153.5,3.0]
[1762516960340,5.33845123,153.52,153.49,0.03207206]
[1762516960539,5.33845123,153.51,153.49,3.03207206]
[1762516960746,0.04205104,153.53,153.49,3.03207206]
[1762516961044,5.34153711,153.52,153.49,3.03207206]
[1762516961245,5.34153711,153.51,153.49,3.03207206]
[1762516961442,3.27,153.52,153.49,0.03207206]
[1762516961744,3.27,153.5,153.49,0.03207206]
[1762516962042,3.27,153.49,153.42,294.47652384]
[1762516962346,3.27,153.49,153.43,3.0]
[1762516962347,5.34363966,153.48,153.43,3.0]
[1762516962545,5.34363966,153.47,153.43,3.0]
[1762516962742,9.1367,153.49,153.43,8.8688]
[1762516962948,8.65791134,153.48,153.43,8.8688]
[1762516963243,5.34414523,153.47,153.43,8.8688]
[1762516963445,0.04376611,153.48,153.45,3.0]
[1762516963643,5.34342289,153.47,153.45,3.0]
[1762516963850,0.04376611,153.48,153.45,3.0]
[1762516964151,5.34372422,153.47,153.43,3.26]
[1762516964444,5.34372422,153.47,153.42,285.60732384]
[1762516964445,2.95,153.45,153.39,3.26]
[1762516964649,14.16259452,153.44,153.39,3.26]
[1762516964842,5.3882436,153.43,153.39,3.26]
[1762516965041,5.34389452,153.42,153.39,3.26]
[1762516965236,2.99434908,153.43,153.39,3.26]
[1762516965441,5.34206774,153.42,153.38,9.1307]
[1762516965650,2.99434908,153.43,153.38,9.1307]
[1762516965851,5.34207129,153.42,153.38,9.1307]
[1762516966047,2.99434908,153.43,153.38,9.1307]
[1762516966344,5.34207129,153.42,153.38,3.26]
[1762516966548,5.34207129,153.41,153.38,3.26]
[1762516966753,2.99434908,153.43,153.38,3.26]
[1762516966943,5.34270998,153.42,153.38,3.26]
[1762516967145,2.95,153.4,153.37,66.36]
[1762516967344,2.95,153.4,153.34,3.26]
[1762516967550,5.38526007,153.39,153.35,3.26]
[1762516967751,0.04265066,153.39,153.35,3.26]
[1762516968851,0.04265066,153.39,153.36,9.1313]
[1762516969252,0.04265066,153.39,153.37,3.26]
[1762516969641,0.04265066,153.39,153.38,3.26]
[1762516970456,5.3809114,153.39,153.38,3.26]
[1762516970651,5.3809114,153.39,153.36,3.26]
[1762516970851,0.04265066,153.39,153.36,3.26]
[1762516971052,0.04265066,153.39,153.35,5.8718]
[1762516971255,2.99265066,153.39,153.34,69.6]
[1762516971552,5.33961244,153.38,153.34,69.6]
[1762516971752,0.04265066,153.39,153.35,3.26]
[1762516971945,5.33961323,153.38,153.35,3.26]
[1762516972143,0.04265066,153.39,153.35,3.26]
[1762516972344,5.33996195,153.38,153.35,3.26]
[1762516972547,0.04265066,153.39,153.35,3.26]
[1762516972753,5.34008751,153.38,153.35,3.26]
[1762516972954,0.04265066,153.39,153.35,3.26]
[1762516973153,5.3400624,153.38,153.35,3.26]
[1762516973454,0.04265066,153.39,153.35,3.26]
[1762516973953,0.04265066,153.39,153.37,3.26]
[1762516974653,0.04265066,153.39,153.38,69.62]
[1762516974959,8.95030417,153.46,153.39,3.26]
[1762516975165,5.33987032,153.45,153.39,3.26]
[1762516975459,5.33987032,153.44,153.43,3.26]
[1762516976060,5.33987032,153.44,153.42,0.04265066]
[1762516976250,0.04806002,153.45,153.42,0.04265066]
[1762516976447,5.34498926,153.44,153.42,0.04265066]
[1762516976651,5.34498926,153.43,153.42,0.04265066]
[1762516978654,0.04806002,153.45,153.42,3.30265066]
[1762516979052,0.04806002,153.45,153.44,3.26]
[1762516979252,6.00030417,153.51,153.47,3.26]
[1762516979453,11.35414759,153.5,153.47,3.26]
[1762516979654,5.35384342,153.49,153.46,5.8675]
[1762516979853,5.35384342,153.48,153.47,3.26]
[1762516980257,5.35384342,153.48,153.46,0.04609457]
[1762516980454,5.35384342,153.47,153.46,0.04609457]
[1762516981263,8.30384342,153.47,153.46,0.04609457]
[1762516981566,5.35384342,153.47,153.46,0.04609457]
[1762516981967,5.35384342,153.47,153.35,413.0]
[1762516981968,2.95,153.46,153.39,3.26]
[1762516982169,8.819,153.43,153.36,3.26]
[1762516982461,5.35384342,153.42,153.36,3.26]
[1762516982764,5.35384342,153.41,153.38,3.26]
[1762516983064,0.04465046,153.41,153.4,9.1298]
[1762516983458,0.04465046,153.41,153.4,10.4298]
[1762516983660,8.97924513,153.49,153.44,3.26]
[1762516983964,14.33483114,153.48,153.41,3.26]
[1762516984267,14.33483114,153.47,153.41,3.26]
[1762516984455,8.30558601,153.46,153.43,5.8687]
[1762516984661,5.35558601,153.45,153.43,5.91881296]
[1762516984962,5.35558601,153.44,153.43,9.17881296]
[1762516985268,6.02924513,153.5,153.46,3.26]
[1762516985561,6.02924513,153.52,153.46,3.26]
[1762516985967,2.95,153.51,153.47,5.8671]
[1762516986161,2.95,153.51,153.47,3.26]
[1762516986469,2.99842629,153.51,153.48,5.8669]
[1762516986658,2.99842629,153.51,153.47,0.0466287]
[1762516986859,2.95,153.48,153.47,0.0466287]
[1762516987067,2.95,153.49,153.47,0.0466287]
[1762516987465,2.99842629,153.51,153.47,0.0466287]
[1762516987961,0.04842629,153.51,153.47,3.3066287]
[1762516988160,2.99842629,153.51,153.47,0.0466287]
[1762516988757,2.99842629,153.51,153.47,3.3066287]
[1762516988964,2.99842629,153.51,153.47,0.0466287]
[1762516989164,8.8167,153.49,153.47,0.0466287]
[1762516989468,2.95,153.48,153.47,0.0466287]
[1762516990167,2.95,153.47,153.4,17.94]
[1762516990372,2.95,153.47,153.42,9.1292]
[1762516991078,2.99935231,153.46,153.43,0.04802125]
[1762516991461,2.95,153.44,153.43,0.04802125]
[1762516992058,2.95,153.42,153.33,8.29912623]
[1762516992369,2.95,153.4,153.3,8.29912623]
[1762516992669,8.8209,153.38,153.31,5.8733]
[1762516993060,6.02924513,153.4,153.34,3.26]
[1762516993061,0.04518167,153.36,153.34,3.26]
[1762516994067,0.04518167,153.36,153.35,3.26]
[1762516994366,0.04518167,153.36,153.34,9.1221]
[1762516994765,0.04518167,153.36,153.34,3.25]
[1762516994969,0.04518167,153.36,153.33,0.04122126]
[1762516994970,0.04518167,153.36,153.33,3.29122126]
[1762516995275,0.04518167,153.36,153.33,0.04122126]
[1762516995475,3.01518167,153.36,153.33,0.04122126]
[1762516996678,0.04518167,153.36,153.33,3.29122126]
[1762516996871,0.04518167,153.36,153.34,9.1221]
[1762516997166,0.04518167,153.36,153.35,3.25]
[1762516997361,6.04901725,153.44,153.4,9.1198]
[1762516997566,5.34874797,153.43,153.4,5.8698]
[1762516997766,8.31874797,153.42,153.36,3.25]
[1762516997968,2.97,153.42,153.36,3.25]
[1762516998365,2.97,153.42,153.37,3.29268627]
[1762516998366,0.04333858,153.41,153.37,3.29268627]
[1762516998964,0.04333858,153.41,153.38,5.8706]
[1762516999169,0.04333858,153.41,153.37,3.29268627]
[1762516999571,3.01333858,153.41,153.37,0.04268627]
[1762517000074,8.3221352,153.4,153.37,0.04268627]
[1762517000272,0.04333858,153.41,153.37,0.04268627]
[1762517000571,5.35314578,153.4,153.37,0.04268627]
[1762517000775,3.01333858,153.41,153.37,0.04268627]
[1762517002569,0.04333858,153.41,153.37,3.29268627]
[1762517003074,0.04333858,153.41,153.38,3.25]
[1762517003276,4.59854428,153.48,153.4,3.25]
[1762517003473,6.04901725,153.52,153.4,3.25]
[1762517003683,9.95618512,153.51,153.4,3.25]
[1762517003874,9.95618512,153.5,153.44,5.8682]
[1762517004073,5.3563643,153.49,153.45,3.25]
[1762517004371,0.04457233,153.49,153.45,3.29187264]
[1762517004573,0.04457233,153.49,153.46,5.8675]
[1762517005468,0.04457233,153.49,153.45,3.29187264]
[1762517005669,2.97,153.47,153.38,3.25]
[1762517005879,2.97,153.45,153.38,3.25]
[1762517006088,8.8372,153.48,153.4,3.25]
[1762517006277,9.96676398,153.47,153.4,3.25]
[1762517006477,5.36173719,153.46,153.4,3.25]
[1762517006673,5.36437756,153.45,153.4,3.25]
[1762517006980,0.04522443,153.45,153.41,0.04891687]
[1762517007977,0.04522443,153.45,153.41,3.29891687]
[1762517008170,0.04522443,153.45,153.43,5.8687]
[1762517008571,0.04522443,153.45,153.44,3.25]
[1762517009471,5.8661,153.51,153.44,4.55]
[1762517009676,9.97155518,153.5,153.46,3.25]
[1762517009876,5.8661,153.51,153.46,3.25]
[1762517010077,9.97124521,153.5,153.46,3.25]
[1762517010383,5.8661,153.51,153.46,3.25]
[1762517010581,5.40955096,153.5,153.47,0.04739619]
[1762517010785,0.0458691,153.5,153.47,0.04739619]
[1762517011082,5.36368186,153.49,153.47,0.04739619]
[1762517011282,2.97,153.49,153.47,0.04739619]
[1762517012584,2.97,153.48,153.47,0.04739619]
[1762517012790,8.34063335,153.48,153.39,62.99]
[1762517012987,2.97,153.48,153.4,3.25]
[1762517013485,8.8371,153.48,153.4,3.25]
[1762517013686,2.97,153.48,153.4,3.25]
[1762517013894,0.04935355,153.46,153.42,0.04982557]
[1762517014684,3.01935355,153.46,153.42,0.04982557]
[1762517014886,2.97,153.44,153.42,0.04982557]
[1762517015995,0.04935355,153.46,153.42,3.29982557]
[1762517016693,0.04935355,153.46,153.43,5.8688]
[1762517018190,0.04935355,153.46,153.45,3.25]
[1762517018390,5.37252917,153.51,153.45,3.25]
[1762517018596,8.34239846,153.5,153.46,5.8674]
[1762517018893,210.84842233,153.54,153.41,3.25]
[1762517018894,2.97,153.48,153.41,3.25]
[1762517019293,3.02002533,153.46,153.43,0.04424031]
[1762517019491,5.37421532,153.45,153.38,3.11]
[1762517019695,3.1,153.45,153.43,0.04877054]
[1762517020095,8.47477081,153.44,153.43,0.04877054]
[1762517020397,3.1,153.43,153.34,3.11]
[1762517020600,5.37477081,153.42,153.34,3.11]
[1762517020800,3.1,153.43,153.34,3.11]
[1762517021094,5.37546183,153.42,153.34,3.11]
[1762517021299,0.04125688,153.4,153.36,0.0463893]
[1762517021600,0.04125688,153.4,153.37,3.11]
[1762517022697,0.04125688,153.4,153.38,5.8706]
[1762517023098,0.04125688,153.4,153.36,3.1563893]
[1762517023298,0.04125688,153.4,153.36,9.0277893]
[1762517023799,0.04125688,153.4,153.36,3.1563893]
[1762517025396,0.04125688,153.4,153.36,9.0278893]
[1762517025997,3.14,153.39,153.36,0.0463893]
[1762517026502,0.04125688,153.4,153.36,2.9963893]
[1762517026703,3.18125688,153.4,153.36,2.9963893]
[1762517027201,0.04125688,153.4,153.36,2.9963893]
[1762517027704,0.04125688,153.4,153.36,8.8677893]
[1762517028505,0.04125688,153.4,153.38,2.95]
[1762517028705,0.04125688,153.4,153.37,8.8209]
[1762517029407,0.04125688,153.4,153.39,2.95]
[1762517030193,9.18901725,153.51,153.41,2.95]
[1762517030399,5.37157465,153.5,153.41,2.95]
[1762517030593,11.23827465,153.49,153.43,5.8687]
[1762517030799,5.37157465,153.48,153.41,2.95]
[1762517030999,9.18901725,153.51,153.41,2.95]
[1762517031307,0.04296713,153.48,153.44,2.99105288]
[1762517033005,9.05006713,153.48,153.44,0.04105288]
[1762517033307,3.14,153.46,153.44,0.04105288]
[1762517033503,5.37524844,153.45,153.44,0.04105288]
[1762517033700,6.09198438,153.48,153.44,0.04105288]
[1762517033701,9.05016713,153.48,153.44,0.04105288]
[1762517033903,5.37481893,153.47,153.44,0.04105288]
[1762517034099,0.04296713,153.48,153.44,0.04105288]
[1762517034100,3.18296713,153.48,153.44,0.04105288]
[1762517034299,5.3743885,153.47,153.44,0.04105288]
[1762517034503,3.18296713,153.48,153.44,0.04105288]
[1762517034697,3.18296713,153.48,153.44,5.90935288]
[1762517034903,0.04296713,153.48,153.44,8.85935288]
[1762517035402,3.18296713,153.48,153.44,0.04105288]
[1762517035604,5.37461842,153.47,153.44,0.04105288]
[1762517035804,3.18296713,153.48,153.44,0.04105288]
[1762517036003,5.37449557,153.47,153.44,0.04105288]
[1762517036204,3.18296713,153.48,153.44,0.04105288]
[1762517038914,5.3755746,153.47,153.44,0.04105288]
[1762517039213,3.18296713,153.48,153.44,0.04105288]
[1762517039512,3.14,153.46,153.36,2.95]
[1762517039714,3.14,153.44,153.36,2.95]
[1762517039908,3.14,153.42,153.36,2.95]
[1762517040214,3.14,153.4,153.32,69.39]
[1762517040601,3.18535497,153.38,153.34,5.9144362]
[1762517040813,0.048528,153.38,153.35,2.95]
[1762517041604,0.048528,153.38,153.36,8.8214]
[1762517041810,0.048528,153.38,153.36,5.8714]
[1762517042013,0.048528,153.38,153.37,2.95]
[1762517042411,9.18901725,153.46,153.39,2.95]
[1762517042611,5.38687427,153.45,153.39,2.95]
[1762517042813,5.38687427,153.44,153.42,2.95]
[1762517043013,7.99475546,153.49,153.39,69.45]
[1762517043014,3.14,153.48,153.39,69.45]
[1762517043317,3.1814221,153.45,153.42,0.04473652]
[1762517043626,3.14,153.43,153.42,0.04473652]
[1762517043823,8.52563949,153.43,153.42,0.04473652]
[1762517045228,3.14,153.43,153.42,0.04473652]
[1762517045527,8.52786935,153.43,153.42,0.04473652]
[1762517046033,8.52811782,153.43,153.42,0.04473652]
[1762517046429,5.38811782,153.43,153.42,0.04473652]
[1762517046623,0.0414221,153.45,153.42,2.99473652]
[1762517047224,0.0414221,153.45,153.43,5.8686]
[1762517048326,0.0414221,153.45,153.43,8.8186]
[1762517048628,0.0414221,153.45,153.43,5.8686]
[1762517048830,0.0414221,153.45,153.43,8.8186]
[1762517049027,0.0414221,153.45,153.44,2.95]
[1762517049224,0.0414221,153.45,153.43,5.8686]
[1762517049427,0.0414221,153.45,153.42,0.04473652]
[1762517049634,8.52918991,153.44,153.42,0.04473652]
[1762517049935,3.14,153.44,153.42,0.04473652]
[1762517050230,8.52950097,153.43,153.42,0.04473652]
[1762517051729,8.53028084,153.43,153.42,0.04473652]
[1762517051925,0.0414221,153.45,153.42,0.04473652]
[1762517052232,8.53016196,153.44,153.42,0.04473652]
[1762517052431,5.39016196,153.43,153.42,0.04473652]
[1762517052830,0.0414221,153.45,153.42,2.99473652]
[1762517053234,0.0414221,153.45,153.43,8.8188]
[1762517053939,0.0414221,153.45,153.44,2.95]
[1762517055636,0.0414221,153.45,153.43,5.8688]
[1762517055836,0.0414221,153.45,153.44,3.01]
[1762517057636,11.94477677,153.52,153.46,3.01]
[1762517057830,5.38915941,153.51,153.46,3.01]
[1762517058035,8.59915941,153.5,153.43,11.5968009]
[1762517058236,5.38915941,153.49,153.46,8.8777]
[1762517058440,9.28907677,153.53,153.46,3.01]
[1762517058627,3.25241965,153.51,153.48,0.04692211]
[1762517058831,5.38806243,153.5,153.48,0.04692211]
[1762517059033,5.38806243,153.49,153.48,0.04692211]
[1762517060043,0.04241965,153.51,153.48,3.05692211]
[1762517060334,11.60628623,153.58,153.5,3.01]
[1762517060335,6.07907677,153.58,153.5,3.01]
[1762517060535,3.21,153.58,153.5,3.01]
[1762517061134,0.04600215,153.56,153.52,0.04374857]
[1762517061329,0.04600215,153.56,153.52,3.05374857]
[1762517061936,0.04600215,153.56,153.53,5.8648]
[1762517062336,0.04600215,153.56,153.52,3.05374857]
[1762517062530,0.04600215,153.56,153.55,3.01]
[1762517066644,3.21,153.62,153.57,3.01]
[1762517067345,3.21,153.62,153.58,5.863]
[1762517067545,3.25503994,153.62,153.58,5.90745461]
[1762517067744,0.04503994,153.62,153.58,8.91745461]
[1762517068741,0.04503994,153.62,153.59,5.8626]
[1762517069246,3.25503994,153.62,153.59,5.8626]
[1762517070541,0.04503994,153.62,153.59,5.8626]
[1762517070945,0.04503994,153.62,153.6,8.8721]
[1762517071345,0.04503994,153.62,153.61,3.01]
[1762517072254,0.04503994,153.62,153.59,66.34]
[1762517072446,3.25503994,153.62,153.58,0.04445461]
[1762517072750,3.25503994,153.62,153.58,3.05445461]
[1762517072953,3.25503994,153.62,153.58,8.91745461]
[1762517073651,0.04503994,153.62,153.59,8.8726]
[1762517074145,3.25503994,153.62,153.59,5.8626]
[1762517074454,3.25503994,153.62,153.58,0.04445461]
[1762517074950,3.21,153.59,153.58,0.04445461]
[1762517075452,3.25503994,153.62,153.58,0.04445461]
[1762517075754,3.21,153.61,153.58,0.04445461]
[1762517077362,9.0725,153.6,153.58,0.04445461]
[1762517077657,3.21,153.6,153.58,0.04445461]
[1762517079154,3.25503994,153.62,153.58,0.04445461]
[1762517079650,2.99,153.6,153.58,0.04445461]
[1762517080046,3.03503994,153.62,153.58,0.04445461]
[1762517080254,8.89673994,153.62,153.58,0.04445461]
[1762517080456,2.99,153.61,153.58,0.04445461]
[1762517081553,2.99,153.59,153.48,3.24]
[1762517081854,2.99,153.59,153.5,3.24]
[1762517082445,6.07907677,153.63,153.49,66.32]
[1762517082446,5.8644,153.55,153.49,5.8664]
[1762517082754,3.03364531,153.54,153.5,3.28209583]
[1762517082947,3.0334157,153.54,153.5,3.28828888]
[1762517083147,3.0334157,153.54,153.39,3.24]
[1762517083453,2.99,153.53,153.41,3.24]
[1762517083642,2.99,153.51,153.43,3.24]
[1762517084154,3.06,153.53,153.46,5.8676]
[1762517084350,3.10959462,153.51,153.48,0.04784766]
[1762517084753,8.97549462,153.51,153.48,0.04784766]
[1762517084951,3.06,153.5,153.48,0.04784766]
[1762517085255,3.10959462,153.51,153.48,0.04784766]
[1762517085845,0.04959462,153.51,153.48,2.99784766]
[1762517086449,0.04959462,153.51,153.5,2.95]
[1762517086658,3.06,153.61,153.5,2.95]
[1762517086956,3.06,153.61,153.53,2.95]
[1762517087345,6.07907677,153.66,153.56,2.95]
[1762517087346,3.06,153.65,153.56,2.95]
[1762517087542,0.04748861,153.62,153.59,0.04947954]
[1762517087743,0.0431293,153.62,153.59,0.04670003]
[1762517089155,0.0431293,153.62,153.59,5.90930003]
[1762517091058,0.0431293,153.62,153.59,8.85930003]
[1762517091454,0.0431293,153.62,153.61,2.95]
[1762517091959,8.9196,153.68,153.61,2.95]
[1762517092258,3.06,153.68,153.61,7.98608971]
[1762517092953,3.06,153.68,153.63,5.8611]
[1762517093260,0.04668643,153.66,153.64,2.95]
[1762517093452,0.04637877,153.67,153.64,2.95]
[1762517093652,0.04637877,153.67,153.64,8.8107]
[1762517095053,0.04637877,153.67,153.65,8.8102]
[1762517096356,0.04637877,153.67,153.66,2.95]
[1762517096756,3.06,153.71,153.67,5.8595]
[1762517096956,5.28383444,153.7,153.67,5.8595]
[1762517097157,3.06,153.7,153.67,5.8595]
[1762517097358,3.06,153.7,153.65,5.8604]
[1762517097655,8.34526973,153.69,153.65,8.8104]
[1762517097865,3.10628099,153.69,153.65,8.8104]
[1762517098049,0.04628099,153.69,153.66,2.95]
[1762517098652,5.28628695,153.68,153.65,0.04769245]
[1762517098858,0.04628099,153.69,153.65,0.04769245]
[1762517099063,5.28683358,153.68,153.65,0.04769245]
[1762517099359,5.28683358,153.67,153.65,0.04769245]
[1762517099562,5.28878794,153.66,153.65,0.04769245]
[1762517100858,0.04628099,153.69,153.65,2.99769245]
[1762517101166,5.29122107,153.68,153.65,2.99769245]